bitfinex/quotes_SOLUSD_20260125
["timestamp","ask_amount","ask_price","bid_price","bid_amount"]
[1769368873214,5.36982554,120.95,120.92,27.13452317]
[1769368873527,5.36982554,120.96,120.93,4.15452317]
[1769368874426,5.36982554,120.94,120.88,4.15452317]
[1769368874623,13.61054544,120.98,120.88,4.15452317]
[1769368874829,5.36982554,120.91,120.88,4.15452317]
[1769368875218,4.4654937,120.94,120.88,4.15452317]
[1769368875420,5.36982554,120.91,120.88,4.15452317]
[1769368875816,5.36982554,120.94,120.89,4.24595617]
[1769368876022,5.36982554,120.92,120.89,4.24595617]
[1769368876222,0.86982554,120.92,120.89,4.24595617]
[1769368876436,5.36982554,120.93,120.89,4.24595617]
[1769368878037,5.36982554,120.9,120.87,22.96]
[1769368878532,5.36982554,120.91,120.87,22.96]
[1769368878732,5.36982554,120.9,120.87,22.96]
[1769368879040,5.36982554,120.93,120.87,31.23312846]
[1769368879241,5.36982554,120.92,120.88,1.5]
[1769368879535,5.36982554,120.91,120.87,22.96]
[1769368879735,5.36982554,120.93,120.87,28.32982554]
[1769368879928,5.36982554,120.93,120.87,22.96]
[1769368880241,5.36982554,120.9,120.87,22.96]
[1769368880426,5.36982554,120.91,120.87,22.96]
[1769368881037,5.36982554,120.9,120.87,22.96]
[1769368881640,5.36982554,120.91,120.87,22.96]
[1769368882141,9.86982554,120.92,120.87,22.96]
[1769368882336,5.36982554,120.91,120.87,22.96]
[1769368882725,9.86982554,120.92,120.87,22.96]
[1769368882928,5.36982554,120.92,120.87,31.23327982]
[1769368883321,4.5,120.94,120.87,31.23327982]
[1769368883543,5.36982554,120.92,120.87,31.23327982]
[1769368883717,5.36982554,120.92,120.87,22.96]
[1769368883917,5.36982554,120.92,120.87,31.23333829]
[1769368884336,5.36982554,120.93,120.88,1.5]
[1769368884642,5.36982554,120.94,120.88,6.86982554]
[1769368885019,5.36982554,120.95,120.89,5.36982554]
[1769368885220,5.36982554,120.92,120.88,1.5]
[1769368885423,9.86982554,120.91,120.88,22.96]
[1769368885621,4.5,120.94,120.88,22.96]
[1769368885828,5.36982554,120.92,120.88,22.96]
[1769368886235,12.76741524,120.96,120.88,28.32982554]
[1769368886441,5.36982554,120.94,120.88,28.32982554]
[1769368886626,5.36982554,120.94,120.89,5.36982554]
[1769368886833,4.5,120.95,120.89,5.36982554]
[1769368886834,5.36982554,120.95,120.89,5.36982554]
[1769368887143,5.36982554,120.94,120.88,36.60246473]
[1769368887321,5.36982554,120.93,120.88,22.96]
[1769368887517,5.36982554,120.93,120.88,31.23266624]
[1769368887943,5.36982554,120.93,120.88,22.96]
[1769368888143,5.36982554,120.93,120.88,31.23220347]
[1769368889338,9.86982554,120.94,120.89,1.5]
[1769368890136,5.36982554,120.92,120.89,1.5]
[1769368890445,5.36982554,120.93,120.89,1.5]
[1769368890746,8.26796573,120.95,120.89,6.86982554]
[1769368890747,5.36982554,120.95,120.89,6.86982554]
[1769368891242,5.36982554,120.95,120.9,5.36982554]
[1769368891445,5.36982554,120.95,120.89,15.14126966]
[1769368891641,9.86982554,120.93,120.89,1.5]
[1769368891839,5.36982554,120.91,120.89,1.5]
[1769368892341,9.86982554,120.92,120.88,22.96]
[1769368892526,5.36982554,120.91,120.88,22.96]
[1769368892721,4.5,120.94,120.88,22.96]
[1769368892934,5.36982554,120.92,120.88,22.96]
[1769368893443,5.36982554,120.94,120.88,36.60225507]
[1769368893752,9.86982554,120.95,120.88,57.28392283]
[1769368893935,9.86982554,120.95,120.89,5.36982554]
[1769368894138,5.36982554,120.94,120.88,57.28392283]
[1769368894326,9.86982554,120.95,120.89,5.36982554]
[1769368894646,9.86982554,120.92,120.89,1.5]
[1769368894948,9.86982554,120.9,120.84,20.68775468]
[1769368895124,5.36982554,120.9,120.85,22.96]
[1769368895324,5.36982554,120.91,120.86,8.27388491]
[1769368895542,4.5,120.92,120.85,28.32982554]
[1769368895543,5.36982554,120.9,120.85,31.23445479]
[1769368895748,5.36982554,120.9,120.85,36.60428033]
[1769368896538,5.36982554,120.9,120.85,31.23445479]
[1769368896738,5.36982554,120.9,120.85,36.60428033]
[1769368897050,5.36982554,120.89,120.85,22.96]
[1769368897239,5.36982554,120.89,120.85,31.23466486]
[1769368898450,5.36982554,120.88,120.85,22.96]
[1769368898832,9.86982554,120.89,120.85,31.23463]
[1769368899036,5.36982554,120.9,120.85,31.23463]
[1769368899541,5.36982554,120.9,120.85,36.60445554]
[1769368899743,5.36982554,120.9,120.85,31.23463]
[1769368900660,9.86982554,120.91,120.85,36.60445554]
[1769368902058,9.86982554,120.91,120.85,57.29125736]
[1769368902957,9.86982554,120.91,120.85,36.60445554]
[1769368903137,5.36982554,120.9,120.85,31.23463]
[1769368903956,5.36982554,120.87,120.85,22.96]
[1769368904258,9.86982554,120.87,120.85,22.96]
[1769368904556,9.86982554,120.86,120.81,8.27727116]
[1769368904733,5.36982554,120.82,120.81,22.96]
[1769368904932,9.86982554,120.84,120.81,22.96]
[1769368905154,5.36982554,120.83,120.81,22.96]
[1769368905557,5.36982554,120.85,120.81,22.96]
[1769368905946,9.86982554,120.86,120.81,31.2374168]
[1769368906156,5.36982554,120.84,120.81,31.23725621]
[1769368906451,5.36982554,120.85,120.81,31.23725621]
[1769368907257,5.36982554,120.87,120.81,36.60708175]
[1769368907634,5.36982554,120.87,120.82,5.36982554]
[1769368907847,5.36982554,120.87,120.82,13.64607494]
[1769368908641,9.86982554,120.87,120.82,13.64607494]
[1769368908843,9.86982554,120.89,120.84,5.36982554]
[1769368909055,5.36982554,120.88,120.83,5.36982554]
[1769368909355,9.86982554,120.89,120.83,5.36982554]
[1769368909536,5.36982554,120.88,120.83,6.86982554]
[1769368910151,5.36982554,120.88,120.83,15.14547837]
[1769368910857,4.5,120.89,120.83,15.14547837]
[1769368911046,9.86982554,120.91,120.85,5.36982554]
[1769368911237,4.5,120.89,120.84,5.36982554]
[1769368911640,9.86982554,120.89,120.84,5.36982554]
[1769368911847,4.5,120.89,120.84,5.36982554]
[1769368912342,9.86982554,120.89,120.84,8.27499345]
[1769368913062,5.36982554,120.86,120.83,1.5]
[1769368913243,9.86982554,120.87,120.83,1.5]
[1769368913443,9.86982554,120.86,120.81,36.60720004]
[1769368914464,5.36982554,120.87,120.82,13.6466009]
[1769368914643,9.86982554,120.87,120.82,13.6466009]
[1769368915038,9.86982554,120.87,120.83,1.5]
[1769368915646,8.27129859,120.9,120.83,1.5]
[1769368915647,9.86982554,120.86,120.83,1.5]
[1769368916546,9.86982554,120.85,120.83,1.5]
[1769368916750,9.86982554,120.85,120.81,22.96]
[1769368916751,5.36982554,120.84,120.81,22.96]
[1769368916964,9.86982554,120.84,120.81,22.96]
[1769368917944,5.36982554,120.83,120.81,22.96]
[1769368918966,9.86982554,120.83,120.81,22.96]
[1769368919266,5.36982554,120.83,120.81,22.96]
[1769368920256,5.36982554,120.82,120.81,22.96]
[1769368920767,5.36982554,120.83,120.81,22.96]
[1769368921357,5.36982554,120.83,120.7,107.60752278]
[1769368921358,4.28922837,120.81,120.65,4.44473108]
[1769368921669,5.36982554,120.71,120.68,4.44473108]
[1769368921860,4.28922837,120.74,120.68,4.44473108]
[1769368921861,5.36982554,120.72,120.68,4.44473108]
[1769368922048,5.36982554,120.75,120.7,4.44473108]
[1769368922368,5.36982554,120.77,120.71,4.44473108]
[1769368922568,4.28922837,120.79,120.74,4.44473108]
[1769368922569,5.36982554,120.79,120.74,4.44473108]
[1769368922765,5.36982554,120.79,120.73,5.36982554]
[1769368922766,35.69715358,120.81,120.75,4.44473108]
[1769368922966,9.65905391,120.81,120.75,9.81455662]
[1769368923170,17.93670341,120.81,120.75,9.81455662]
[1769368923363,4.28922837,120.81,120.76,9.57119252]
[1769368923562,4.15445683,120.83,120.77,9.57119252]
[1769368923775,17.80053835,120.83,120.78,4.20136698]
[1769368924272,12.43071281,120.83,120.78,9.57119252]
[1769368924456,12.42940387,120.85,120.79,9.57119252]
[1769368924655,17.79922941,120.85,120.8,5.36982554]
[1769368924857,17.79922941,120.85,120.79,4.20136698]
[1769368924858,17.79922941,120.85,120.79,9.57119252]
[1769368925062,4.15445683,120.85,120.81,5.36982554]
[1769368925373,4.15445683,120.85,120.8,4.70136698]
[1769368925547,4.15445683,120.85,120.81,5.36982554]
[1769368926065,12.42800411,120.87,120.82,5.36982554]
[1769368926266,12.42800411,120.87,120.83,5.36982554]
[1769368926474,17.79782965,120.87,120.82,5.36982554]
[1769368926669,4.15445683,120.86,120.82,5.36982554]
[1769368927050,4.15445683,120.85,120.8,4.70136698]
[1769368927272,5.36982554,120.88,120.83,4.20136698]
[1769368927467,8.2706145,120.91,120.81,4.20136698]
[1769368927762,5.36982554,120.87,120.81,9.57119252]
[1769368927965,9.52428237,120.87,120.81,9.57119252]
[1769368928282,9.52428237,120.87,120.82,5.36982554]
[1769368928483,4.15445683,120.88,120.83,9.57119252]
[1769368928655,4.15445683,120.9,120.85,4.20136698]
[1769368928855,4.15445683,120.9,120.85,9.57119252]
[1769368928856,9.52428237,120.9,120.85,9.57119252]
[1769368929565,4.15445683,120.88,120.83,9.58582968]
[1769368929774,9.53891953,120.9,120.85,5.3844627]
[1769368930277,4.15445683,120.85,120.75,12.48247613]
[1769368930459,4.15445683,120.82,120.77,4.20136698]
[1769368930655,4.15445683,120.84,120.78,4.20136698]
[1769368930850,5.3844627,120.84,120.79,4.20136698]
[1769368931055,5.3844627,120.83,120.79,4.20136698]
[1769368931258,4.15445683,120.88,120.82,4.20136698]
[1769368931482,9.53891953,120.88,120.83,4.20136698]
[1769368931677,5.3844627,120.89,120.84,4.20136698]
[1769368932058,9.53891953,120.9,120.85,4.20136698]
[1769368932261,5.3844627,120.89,120.85,4.70136698]
[1769368932491,5.3844627,120.86,120.85,0.5]
[1769368932770,5.3844627,120.88,120.85,1e-08]
[1769368932976,5.3844627,120.89,120.85,1e-08]
[1769368933376,5.3844627,120.88,120.84,4.20136698]
[1769368933561,17.81029685,120.9,120.84,9.58582968]
[1769368933757,4.15445683,120.9,120.85,9.58582968]
[1769368933963,5.3844627,120.89,120.83,4.20136698]
[1769368934176,5.3844627,120.89,120.83,9.58582968]
[1769368934383,9.53891953,120.89,120.83,9.58582968]
[1769368934585,9.53891953,120.89,120.84,4.20136698]
[1769368935083,5.3844627,120.88,120.84,4.20136698]
[1769368935276,9.53891953,120.89,120.84,4.20136698]
[1769368935499,9.7684655,120.87,120.82,4.12257108]
[1769368936365,9.7684655,120.89,120.84,4.12257108]
[1769368936956,5.3844627,120.9,120.85,4.12257108]
[1769368937587,9.7684655,120.9,120.85,4.12257108]
[1769368937963,4.3840028,120.9,120.85,9.50703378]
[1769368938159,4.3840028,120.92,120.87,9.50703378]
[1769368939173,5.3844627,120.89,120.84,4.12257108]
[1769368939371,9.7684655,120.9,120.84,17.7823097]
[1769368939767,5.3844627,120.88,120.83,17.78303247]
[1769368939967,4.3840028,120.91,120.85,9.50703378]
[1769368940180,5.3844627,120.92,120.87,4.12257108]
[1769368940376,9.7684655,120.92,120.87,4.12257108]
[1769368940581,4.3840028,120.92,120.87,9.50703378]
[1769368940774,4.3840028,120.96,120.9,4.12257108]
[1769368940986,4.3840028,120.95,120.9,9.06693571]
[1769368941367,9.7684655,120.94,120.88,5.3844627]
[1769368941791,9.7684655,120.94,120.88,13.6565275]
[1769368941977,9.7684655,120.94,120.89,5.3844627]
[1769368942284,9.7684655,120.94,120.88,5.3844627]
[1769368942491,9.7684655,120.93,120.87,13.65765109]
[1769368942686,5.3844627,120.93,120.87,5.3844627]
[1769368942888,9.7684655,120.91,120.86,4.12257108]
[1769368943091,4.3840028,120.93,120.87,4.12257108]
[1769368943276,9.7684655,120.93,120.88,4.12257108]
[1769368944366,5.3844627,120.94,120.89,5.3844627]
[1769368944566,4.3840028,120.95,120.9,9.50703378]
[1769368945593,9.7684655,120.97,120.92,4.12257108]
[1769368945779,9.7684655,120.96,120.91,5.3844627]
[1769368945982,5.3844627,120.96,120.9,9.50703378]
[1769368946183,9.7684655,120.96,120.9,4.12257108]
[1769368946390,9.7684655,120.96,120.9,9.50703378]
[1769368946584,9.7684655,120.95,120.9,9.50703378]
[1769368947279,9.7684655,120.95,120.9,4.12257108]
[1769368948094,9.7684655,120.95,120.88,4.12257108]
[1769368948095,9.7684655,120.93,120.88,4.12257108]
[1769368948285,5.3844627,120.92,120.87,9.50703378]
[1769368948485,9.7684655,120.93,120.88,4.12257108]
[1769368948683,4.3840028,120.93,120.88,9.50703378]
[1769368948991,4.3840028,120.93,120.89,8.27183995]
[1769368949199,4.3840028,120.93,120.88,12.39497316]
[1769368949391,4.3840028,120.93,120.88,17.77943586]
[1769368949694,9.7684655,120.9,120.85,4.12257108]
[1769368949894,5.3844627,120.9,120.86,4.12257108]
[1769368950099,5.3844627,120.91,120.86,4.12257108]
[1769368950397,5.3844627,120.9,120.86,4.12257108]
[1769368950600,9.7684655,120.91,120.86,4.12257108]
[1769368950893,9.7684655,120.93,120.88,9.50703378]
[1769368951080,5.3844627,120.92,120.88,4.12257108]
[1769368951597,4.3840028,120.95,120.88,4.12257108]
[1769368951796,4.3840028,120.95,120.9,4.12257108]
[1769368951980,9.7684655,120.95,120.9,4.12257108]
[1769368953401,5.3844627,120.95,120.89,8.27145682]
[1769368953595,9.67880557,120.92,120.87,12.3408624]
[1769368953983,4.29434287,120.92,120.87,12.3408624]
[1769368954184,9.67880557,120.92,120.87,17.7253251]
[1769368954705,8.26796528,120.95,120.85,17.72699285]
[1769368954706,9.67880557,120.91,120.85,17.72699285]
[1769368954895,5.3844627,120.9,120.85,12.34253015]
[1769368955074,4.29434287,120.91,120.85,17.72699285]
[1769368955075,9.67880557,120.91,120.85,17.72699285]
[1769368956090,9.67880557,120.91,120.86,4.0679251]
[1769368956397,5.3844627,120.89,120.85,4.0679251]
[1769368956778,4.29434287,120.91,120.86,4.0679251]
[1769368956980,9.67880557,120.91,120.87,4.0679251]
[1769368957180,9.67880557,120.91,120.86,4.0679251]
[1769368957380,4.29434287,120.91,120.87,4.0679251]
[1769368957590,9.67880557,120.9,120.85,17.72675865]
[1769368957783,9.67880557,120.9,120.85,12.34229595]
[1769368958310,9.67880557,120.87,120.82,4.0679251]
[1769368958495,4.29434287,120.9,120.85,4.0679251]
[1769368958703,5.3844627,120.89,120.85,4.0679251]
[1769368959084,9.67880557,120.9,120.85,12.34263801]
[1769368959278,5.3844627,120.91,120.86,4.0679251]
[1769368959496,9.67880557,120.91,120.86,4.0679251]
[1769368961094,9.67880557,120.9,120.86,4.0679251]
[1769368962110,5.3844627,120.91,120.86,4.0679251]
[1769368962498,9.67880557,120.91,120.86,4.0679251]
[1769368966111,5.3844627,120.9,120.86,4.0679251]
[1769368966611,9.67880557,120.91,120.86,4.0679251]
[1769368968693,9.67880557,120.94,120.89,4.0679251]
[1769368969202,5.3844627,120.95,120.9,4.0679251]
[1769368969399,4.29434287,120.96,120.91,9.4523878]
[1769368969797,8.26648553,120.98,120.93,9.4523878]
[1769368969798,4.29434287,120.98,120.93,9.4523878]
[1769368969998,4.29434287,120.98,120.94,9.4523878]
[1769368970304,13.64928217,121.0,120.94,9.4523878]
[1769368970492,4.29434287,120.99,120.94,9.4523878]
[1769368970693,9.67880557,120.99,120.94,4.0679251]
[1769368972414,9.67880557,120.98,120.94,4.0679251]
[1769368972716,5.3844627,121.0,120.95,4.0679251]
[1769368972920,5.3844627,121.01,120.96,4.0679251]
[1769368973099,0.2,121.02,120.98,9.4523878]
[1769368973298,0.2,121.02,120.98,4.0679251]
[1769368973498,0.2,121.02,120.99,4.0679251]
[1769368973701,5.5844627,121.02,120.97,4.0679251]
[1769368974002,5.5844627,121.02,120.97,27.0279251]
[1769368974003,9.87880557,121.02,120.97,27.0279251]
[1769368974321,9.87880557,121.02,120.94,28.93990595]
[1769368974322,9.67880557,121.0,120.95,27.0279251]
[1769368974504,5.3844627,121.0,120.96,4.0679251]
[1769368974701,9.67880557,121.01,120.96,4.0679251]
[1769368975412,5.3844627,121.0,120.96,4.0679251]
[1769368976007,9.67880557,121.01,120.96,4.0679251]
[1769368976607,9.67880557,121.01,120.96,8.26681805]
[1769368976919,5.3844627,121.01,120.97,4.0679251]
[1769368978111,9.67880557,120.99,120.95,22.96]
[1769368978517,5.3844627,120.98,120.95,22.96]
[1769368979020,5.3844627,120.99,120.95,27.0279251]
[1769368979325,5.3844627,121.0,120.95,27.0279251]
[1769368979510,9.67880557,121.01,120.96,4.0679251]
[1769368979898,5.3844627,121.0,120.96,4.0679251]
[1769368981320,4.29434287,121.01,120.96,4.0679251]
[1769368981518,8.46347248,121.02,120.99,4.0679251]
[1769368981519,0.2,121.02,120.99,4.0679251]
[1769368982427,9.87880557,121.02,120.97,4.0679251]
[1769368983222,4.49434287,121.02,120.98,4.21039703]
[1769368983470,5.3844627,121.0,120.96,4.21039703]
[1769368983808,9.49544355,121.01,120.96,4.21039703]
[1769368984127,9.49544355,121.01,120.97,4.21039703]
[1769368984330,9.69544355,121.02,120.97,4.21039703]
[1769368984738,5.3844627,121.01,120.97,4.21039703]
[1769368985227,4.31098085,121.02,120.95,5.3844627]
[1769368985228,5.3844627,120.98,120.95,4.21039703]
[1769368985434,5.3844627,120.98,120.92,43.63437931]
[1769368985435,0.2,121.02,120.98,4.21039703]
[1769368985606,0.2,121.02,120.98,5.3844627]
[1769368985806,0.2,121.02,120.99,5.3844627]
[1769368986341,0.2,121.03,121.0,5.3844627]
[1769368986547,12.37063451,121.08,121.02,5.3844627]
[1769368986713,9.49544355,121.08,121.02,5.3844627]
[1769368986915,5.3844627,121.06,121.01,22.96]
[1769368987642,9.49544355,121.05,121.01,22.96]
[1769368987817,9.49544355,121.03,120.98,8.2657365]
[1769368988019,9.49544355,121.02,120.99,22.94]
[1769368989446,9.45433374,121.0,120.94,4.21039703]
[1769368989620,5.3844627,120.99,120.95,4.21039703]
[1769368989818,5.3844627,120.99,120.95,12.47820211]
[1769368991445,9.45433374,121.0,120.96,4.21039703]
[1769368991740,5.37482014,121.0,120.96,4.21039703]
[1769368992447,5.37482014,121.01,120.96,4.21039703]
[1769368993536,5.37482014,120.99,120.95,12.47807376]
[1769368994039,5.37482014,121.0,120.96,12.47757392]
[1769368994423,5.37482014,120.97,120.93,12.47923897]
[1769368994633,5.37482014,120.98,120.94,4.21039703]
[1769368995238,5.37482014,120.99,120.95,4.49581391]
[1769368995545,5.37482014,120.99,120.95,12.76351457]
[1769368995744,5.37482014,120.99,120.95,4.49581391]
[1769368996338,5.37482014,120.98,120.95,4.49581391]
[1769368996541,5.37482014,120.98,120.93,12.76474155]
[1769368996743,5.37482014,120.97,120.93,12.76474155]
[1769368997238,5.37482014,120.97,120.92,28.31482014]
[1769368997239,5.37482014,120.96,120.92,35.70555489]
[1769368997634,5.37482014,120.96,120.93,4.49581391]
[1769368997942,5.37482014,120.97,120.93,4.49581391]
[1769368998445,5.37482014,120.98,120.94,4.49581391]
[1769368998641,5.37482014,120.97,120.94,4.49581391]
[1769368998823,5.37482014,120.98,120.94,4.49581391]
[1769369000050,5.37482014,120.97,120.94,4.49581391]
[1769369000237,5.37482014,120.96,120.92,27.43581391]
[1769369000442,5.37482014,120.96,120.93,4.49581391]
[1769369000654,9.44469118,120.97,120.93,4.49581391]
[1769369000840,5.37482014,120.97,120.93,4.49581391]
[1769369002057,5.37482014,120.97,120.93,12.76488516]
[1769369002254,5.37482014,120.98,120.94,4.49581391]
[1769369002460,13.60750173,121.02,120.94,4.49581391]
[1769369002659,5.37482014,120.99,120.94,4.49581391]
[1769369003054,9.44469118,120.99,120.94,4.49581391]
[1769369003562,9.44469118,120.99,120.94,12.763738]
[1769369003856,5.37482014,120.98,120.94,4.49581391]
[1769369004046,5.37482014,120.98,120.94,12.76432248]
[1769369004447,4.06987104,120.99,120.95,4.49581391]
[1769369004653,9.44469118,120.99,120.95,4.49581391]
[1769369005661,5.37482014,120.99,120.95,4.49581391]
[1769369005855,5.37482014,120.99,120.95,12.76367713]
[1769369008450,5.37482014,120.99,120.95,8.26786322]
[1769369008641,5.37482014,120.98,120.94,4.49581391]
[1769369009536,9.44469118,120.99,120.94,4.49581391]
[1769369010070,5.37482014,121.0,120.95,4.49581391]
[1769369010974,12.33253895,121.03,120.96,4.49581391]
[1769369011282,4.06987104,121.03,120.97,4.49581391]
[1769369011443,4.06987104,121.04,120.99,4.35008128]
[1769369011650,5.37482014,121.04,120.99,4.35008128]
[1769369013570,9.44469118,121.04,120.99,4.35008128]
[1769369013768,9.44469118,121.04,121.0,4.08728974]
[1769369014199,4.06987104,121.02,120.98,22.94]
[1769369014486,9.44469118,121.01,120.98,22.94]
[1769369017781,4.06987104,121.01,120.98,22.94]
[1769369018080,5.37482014,121.02,120.98,27.02728974]
[1769369018284,9.44469118,121.03,120.98,27.02728974]
[1769369018657,17.70713961,121.03,120.98,27.02728974]
[1769369019378,5.37482014,121.04,120.99,4.08728974]
[1769369019575,5.37482014,121.05,121.01,4.08728974]
[1769369020395,9.44469118,121.05,121.01,4.08728974]
[1769369020892,9.44469118,121.05,121.0,4.08728974]
[1769369021579,4.06987104,121.03,120.99,9.46210988]
[1769369021781,9.44469118,121.03,120.98,27.02728974]
[1769369022179,9.44469118,121.03,120.98,40.66782811]
[1769369022683,9.44469118,121.03,120.99,4.08728974]
[1769369026298,20.65012901,121.07,121.0,4.08728974]
[1769369026299,9.44469118,121.04,121.0,4.08728974]
[1769369026495,4.06987104,121.04,121.0,4.08728974]
[1769369026698,4.06987104,121.06,121.02,4.08728974]
[1769369026996,9.44469118,121.09,121.05,4.08728974]
[1769369027198,9.44469118,121.08,121.03,9.46210988]
[1769369027404,9.44469118,121.08,121.04,4.08728974]
[1769369028195,17.7030792,121.09,121.04,4.08728974]
[1769369028492,17.7030792,121.09,121.02,4.08728974]
[1769369028493,9.44469118,121.06,121.02,4.08728974]
[1769369029080,9.44469118,121.05,121.01,4.08728974]
[1769369029275,5.37482014,121.05,121.01,4.08728974]
[1769369029482,9.44469118,121.06,121.01,4.08728974]
[1769369030397,5.37482014,121.07,121.02,4.08728974]
[1769369030700,12.32941429,121.08,121.02,4.08728974]
[1769369030701,9.44469118,121.06,121.02,4.08728974]
[1769369032384,4.06987104,121.06,121.02,9.46210988]
[1769369032785,4.06987104,121.06,121.02,4.08728974]
[1769369033485,9.44469118,121.06,121.02,4.08728974]
[1769369034889,9.44469118,121.06,121.0,4.08728974]
[1769369034890,4.06987104,121.04,121.0,4.08728974]
[1769369035399,4.06987104,121.05,121.01,9.46210988]
[1769369036102,5.37482014,121.06,121.02,4.08728974]
[1769369036408,9.44469118,121.06,121.02,4.08728974]
[1769369036796,4.06987104,121.05,121.01,5.37482014]
[1769369037101,9.44469118,121.05,121.01,4.08728974]
[1769369037874,9.44469118,121.02,120.98,22.94]
[1769369038277,4.06987104,121.03,120.98,28.31482014]
[1769369038497,9.44469118,121.03,120.98,36.58062964]
[1769369039607,9.44469118,121.03,120.98,31.2058095]
[1769369040182,4.06987104,121.03,120.98,22.94]
[1769369040383,9.44469118,121.01,120.98,22.94]
[1769369041102,5.37482014,121.0,120.98,22.94]
[1769369041307,5.37482014,120.99,120.94,4.08728974]
[1769369041504,9.4139596,121.01,120.96,4.08728974]
[1769369041703,9.44469118,121.01,120.97,4.08728974]
[1769369041905,5.37482014,121.0,120.96,4.08728974]
[1769369042207,9.44469118,120.97,120.92,27.02728974]
[1769369042503,5.37482014,120.97,120.93,4.08728974]
[1769369042909,9.44469118,120.98,120.93,4.08728974]
[1769369043109,5.37482014,120.97,120.93,4.08728974]
[1769369043309,5.37482014,120.96,120.93,4.08728974]
[1769369043811,5.37482014,120.95,120.93,4.08728974]
[1769369044005,5.37482014,120.96,120.93,4.08728974]
[1769369044210,9.44469118,120.97,120.93,4.08728974]
[1769369044883,5.37482014,120.96,120.93,4.08728974]
[1769369045811,16.12457897,120.92,120.89,4.28951344]
[1769369046216,21.49939911,120.92,120.89,4.28951344]
[1769369046390,21.49939911,120.92,120.87,31.21306209]
[1769369046391,20.19445001,120.92,120.88,4.28951344]
[1769369046598,5.37482014,120.91,120.88,4.28951344]
[1769369048095,5.37482014,120.9,120.88,4.28951344]
[1769369048303,5.37482014,120.91,120.88,4.28951344]
[1769369048816,5.37482014,120.91,120.87,27.22951344]
[1769369049015,5.37482014,120.9,120.87,27.22951344]
[1769369049396,5.37482014,120.91,120.87,27.22951344]
[1769369051218,5.37482014,120.9,120.87,27.22951344]
[1769369051712,5.38320914,120.9,120.87,27.22951344]
[1769369052810,9.8,120.91,120.88,5.38320914]
[1769369053115,4.37074929,120.92,120.88,5.38320914]
[1769369053417,5.38320914,120.93,120.88,5.38320914]
[1769369053914,9.75395843,120.93,120.88,5.38320914]
[1769369054106,9.75395843,120.92,120.87,28.32285429]
[1769369054314,5.38320914,120.91,120.87,22.93964515]
[1769369054609,5.38320914,120.93,120.88,5.38320914]
[1769369054812,5.38320914,120.92,120.88,4.28951344]
[1769369055308,9.51844836,120.92,120.88,4.28951344]
[1769369055510,5.38320914,120.91,120.88,4.28951344]
[1769369056218,9.51844836,120.92,120.88,4.28951344]
[1769369056412,5.38320914,120.92,120.88,4.28951344]
[1769369056612,9.51844836,120.92,120.88,4.28951344]
[1769369057315,4.13523922,120.94,120.9,4.36029466]
[1769369057521,5.38320914,120.93,120.9,4.36029466]
[1769369058121,9.51844836,120.94,120.9,4.36029466]
[1769369058627,4.13523922,120.94,120.9,9.7435038]
[1769369059302,8.26741467,120.96,120.92,5.38320914]
[1769369059303,4.13523922,120.96,120.92,5.38320914]
[1769369059514,9.51844836,120.96,120.92,4.36029466]
[1769369060121,4.13523922,120.96,120.92,9.7435038]
[1769369061300,4.13523922,120.96,120.89,20.67862993]
[1769369061301,5.38320914,120.94,120.9,4.36029466]
[1769369061509,9.51844836,120.94,120.9,4.36029466]
[1769369061828,4.13523922,120.93,120.89,4.36029466]
[1769369062836,5.38320914,120.94,120.9,4.36029466]
[1769369063136,9.51844836,120.94,120.9,4.36029466]
[1769369064030,4.13523922,120.94,120.9,9.7435038]
[1769369065911,14.86253692,120.96,120.91,4.36029466]
[1769369066116,13.93523922,120.96,120.91,9.7435038]
[1769369066330,19.31844836,120.96,120.91,9.7435038]
[1769369066524,15.18320914,120.96,120.91,9.7435038]
[1769369066727,13.93523922,120.96,120.92,9.7435038]
[1769369067136,9.8,120.96,120.93,4.36029466]
[1769369067334,9.51844836,120.98,120.93,9.7435038]
[1769369067637,4.13523922,120.98,120.93,9.7435038]
[1769369068231,12.1878423,120.99,120.94,4.36029466]
[1769369068431,5.38320914,120.99,120.94,4.36029466]
[1769369069038,5.38320914,120.99,120.94,9.7435038]
[1769369069424,13.64708971,121.01,120.96,4.36029466]
[1769369069622,9.51844836,121.0,120.96,3.92138312]
[1769369070555,4.13523922,120.96,120.85,20.7855874]
[1769369070720,4.13523922,120.91,120.86,5.38320914]
[1769369071049,4.13523922,120.91,120.86,22.96]
[1769369071050,4.13523922,120.9,120.86,22.96]
[1769369071229,4.13523922,120.91,120.86,28.34320914]
[1769369072252,9.51844836,120.91,120.86,28.34320914]
[1769369072614,9.51844836,120.91,120.87,27.32029466]
[1769369074838,4.13523922,120.91,120.87,27.32029466]
[1769369075041,9.51844836,120.91,120.87,27.32029466]
[1769369076340,5.38320914,120.9,120.88,6.81006719]
[1769369077845,9.51844836,120.91,120.88,6.81006719]
[1769369078035,9.51844836,120.91,120.88,11.19664586]
[1769369078242,4.19805116,120.93,120.89,4.38657867]